bitfinex/quotes_ETHUSD_20240910
["timestamp","ask_amount","ask_price","bid_price","bid_amount"]
[1725928878851,2.4793,2351.1,2350.8,3.25873828]
[1725928879053,2.4793,2351.1,2350.9,1.30349531]
[1725928879255,2.4793,2351.1,2350.7,1.29282992]
[1725928879459,2.4793,2351.1,2350.8,3.25817055]
[1725928879644,2.4793,2351.1,2350.7,1.29282992]
[1725928879984,2.4793,2351.1,2350.8,3.25848688]
[1725928880153,2.4793,2351.1,2350.7,1.29282992]
[1725928880350,2.4793,2351.1,2350.8,3.25790135]
[1725928880667,2.4793,2351.1,2350.7,1.29282992]
[1725928880860,2.4793,2351.1,2350.8,3.25820065]
[1725928881050,2.4793,2351.1,2350.7,1.29282992]
[1725928881252,2.4793,2351.1,2350.8,3.25770146]
[1725928881553,2.4793,2351.1,2350.7,1.29282992]
[1725928881753,2.4793,2351.1,2350.8,3.25782913]
[1725928881954,2.4793,2351.1,2350.7,1.29282992]
[1725928882152,2.4793,2351.1,2350.8,3.25781128]
[1725928882477,2.4793,2351.1,2350.7,1.29282992]
[1725928882641,2.4793,2351.1,2350.8,1.30297363]
[1725928882841,0.08379713,2351.0,2350.6,0.89221383]
[1725928883041,0.08379713,2351.0,2350.7,3.2574787]
[1725928883278,0.08379713,2351.0,2350.8,1.30279546]
[1725928883451,0.08379713,2351.0,2350.6,1.52322088]
[1725928883652,0.08379713,2351.0,2350.7,3.25707737]
[1725928883890,0.08379713,2351.0,2350.8,1.30283095]
[1725928884042,0.08379713,2351.0,2350.6,1.52322088]
[1725928884239,0.08379713,2351.0,2350.7,3.54250256]
[1725928884584,0.08379713,2351.0,2350.6,1.52322088]
[1725928884794,0.08379713,2351.0,2350.7,1.30273417]
[1725928884942,2.4618,2350.9,2350.5,0.89221383]
[1725928885145,0.08379713,2350.8,2350.6,3.25688358]
[1725928885465,2.54559713,2350.9,2350.5,0.89221383]
[1725928885666,2.54559713,2350.9,2350.6,3.25653387]
[1725928885877,2.4618,2350.9,2350.7,1.30261124]
[1725928886072,2.4618,2350.9,2350.6,0.89221383]
[1725928886387,0.08379713,2350.8,2350.4,0.89221383]
[1725928886566,0.08379713,2350.8,2350.5,3.25637558]
[1725928886737,0.08379713,2350.8,2350.6,1.30255023]
[1725928886935,0.08379713,2350.8,2350.4,0.89221383]
[1725928887136,0.08379713,2350.8,2350.5,3.25637858]
[1725928887379,0.08379713,2350.8,2350.4,1.59282992]
[1725928887587,0.08379713,2350.8,2350.5,3.25588016]
[1725928887755,0.08379713,2350.8,2350.3,0.89221383]
[1725928887949,0.08379713,2350.8,2350.4,3.25587555]
[1725928888149,0.08379713,2350.8,2350.3,0.89221383]
[1725928888485,0.08379713,2350.8,2350.4,3.25527788]
[1725928888686,0.08379713,2350.8,2350.3,0.89221383]
[1725928888849,0.08379713,2350.8,2350.4,3.25512166]
[1725928889049,2.3579,2350.7,2350.3,2.04103173]
[1725928889248,2.3579,2350.7,2350.4,3.25459286]
[1725928889456,2.3579,2350.7,2350.3,0.89221383]
[1725928889457,0.08379713,2350.6,2350.3,0.89221383]
[1725928889684,2.3579,2350.5,2350.1,0.89221383]
[1725928889885,2.3579,2350.5,2350.2,3.73781064]
[1725928890089,2.3579,2350.5,2350.2,0.48304516]
[1725928890400,2.3579,2350.5,2350.0,0.89221383]
[1725928890572,2.3579,2350.5,2350.1,3.2536916]
[1725928890897,2.3579,2350.5,2350.2,1.30147664]
[1725928891103,2.3579,2350.5,2350.0,2.77002341]
[1725928891395,2.3579,2350.5,2350.1,3.25288259]
[1725928891602,2.3579,2350.5,2350.2,0.6022906]
[1725928891787,2.3579,2350.5,2350.1,0.50324858]
[1725928891963,2.3579,2350.5,2350.2,1.30108965]
[1725928892163,2.3579,2350.5,2350.0,0.89221383]
[1725928892366,2.3579,2350.5,2350.1,3.25214052]
[1725928892566,2.3579,2350.5,2350.2,1.30085621]
[1725928892871,2.3579,2350.5,2350.1,2.45450761]
[1725928893067,2.3579,2350.5,2350.2,1.30083413]
[1725928893283,2.3579,2350.5,2350.1,0.50325557]
[1725928893599,2.3579,2350.5,2350.2,1.30060386]
[1725928893773,2.3579,2350.5,2350.1,2.72715196]
[1725928893970,2.3579,2350.5,2350.2,1.30059685]
[1725928894301,2.4051,2350.3,2349.9,2.22676258]
[1725928894487,2.65398971,2350.3,2349.8,1.3955069]
[1725928894689,0.08379713,2350.2,2349.9,3.25122628]
[1725928894889,0.08379713,2350.2,2349.8,0.50330002]
[1725928895090,0.08379713,2350.2,2349.9,1.30052607]
[1725928895415,2.4051,2350.3,2349.8,1.95027072]
[1725928895706,2.4051,2350.3,2349.8,2.41830405]
[1725928896293,2.4051,2350.3,2349.8,0.46803333]
[1725928896496,2.4051,2350.3,2349.7,0.50330002]
[1725928896670,2.4051,2350.3,2349.8,1.29982313]
[1725928897085,2.4051,2350.3,2349.7,2.4526223]
[1725928898101,2.4051,2350.3,2349.8,1.29961336]
[1725928898293,2.4051,2350.3,2349.7,2.4526223]
[1725928898493,2.4051,2350.3,2349.8,0.82226457]
[1725928900696,2.4051,2350.3,2349.8,1.32557823]
[1725928900873,2.4051,2350.3,2349.8,0.82226457]
[1725928901180,2.4051,2350.3,2349.8,1.32557823]
[1725928901382,2.4051,2350.3,2349.8,0.82226457]
[1725928901605,2.4051,2350.3,2349.8,1.32557835]
[1725928901788,2.4051,2350.3,2349.8,0.82226457]
[1725928901989,2.4051,2350.3,2349.8,1.32557835]
[1725928902208,2.4051,2350.3,2349.8,0.82226457]
[1725928902587,0.08379713,2350.2,2349.8,0.50331104]
[1725928902791,2.4221,2350.1,2349.4,2.84054464]
[1725928902979,1.87780958,2350.3,2349.4,2.84054464]
[1725928902980,2.4221,2349.9,2349.5,4.80219607]
[1725928903174,2.4221,2349.9,2349.5,0.95205503]
[1725928903376,2.4221,2349.9,2349.3,4.71835422]
[1725928903601,2.4221,2349.9,2349.4,1.80200451]
[1725928903937,2.4221,2349.9,2349.5,0.5033588]
[1725928904143,2.51569713,2350.2,2349.6,0.5033588]
[1725928904425,2.51569713,2350.2,2349.7,0.47006684]
[1725928904795,2.51569713,2350.2,2349.7,0.97339953]
[1725928904996,2.51569713,2350.2,2349.7,0.47006684]
[1725928905227,0.08379713,2350.1,2349.7,0.47006684]
[1725928909732,2.51569713,2350.2,2349.7,0.47006684]
[1725928910807,2.4319,2350.2,2349.7,0.47006684]
[1725928913451,0.08379713,2350.3,2349.8,2.335]
[1725928913615,0.08379713,2350.3,2349.9,0.46828764]
[1725928914038,0.08379713,2350.3,2349.7,1.87780958]
[1725928914345,0.08379713,2350.3,2349.8,0.50331386]
[1725928914545,0.08379713,2350.4,2349.7,1.87780958]
[1725928914716,0.08379713,2350.4,2349.8,0.50331394]
[1725928914911,0.08379713,2350.4,2349.7,1.87780958]
[1725928915138,0.08379713,2350.4,2349.8,0.92459562]
[1725928915330,0.08379713,2350.4,2349.9,0.50331466]
[1725928915540,0.08379713,2350.4,2349.8,0.42128096]
[1725928918620,0.08379713,2350.4,2349.9,2.3349]
[1725928919062,0.08379713,2350.4,2349.8,0.42128096]
[1725928919629,0.08379713,2350.4,2349.8,2.29909054]
[1725928919863,0.08379713,2350.4,2349.9,0.46339905]
[1725928928338,0.08379713,2350.4,2350.0,1.30028931]
[1725928928547,0.08379713,2350.4,2349.9,0.46339905]
[1725928929173,0.08379713,2350.4,2350.0,1.30033046]
[1725928929347,0.08379713,2350.4,2349.9,0.46339905]
[1725928929543,2.4196,2350.3,2350.0,1.30060464]
[1725928929775,0.08379713,2350.2,2349.7,0.89221383]
[1725928930068,0.08379713,2350.2,2349.8,3.25163202]
[1725928930273,0.08379713,2350.2,2349.9,1.30065281]
[1725928930447,0.08379713,2350.2,2349.7,0.89221383]
[1725928930642,2.3817,2350.1,2349.7,0.89221383]
[1725928930872,0.08379713,2350.0,2349.8,1.30096701]
[1725928931177,2.4323,2349.9,2349.5,0.89221383]
[1725928931388,0.08379713,2349.8,2349.6,3.25336283]
[1725928931592,2.4949,2350.1,2349.7,1.30123687]
[1725928931800,7.32,2350.3,2349.8,3.33811111]
[1725928932090,2.4949,2350.3,2349.9,3.25299923]
[1725928932387,2.4949,2350.3,2350.0,3.25299923]
[1725928932590,2.4949,2350.3,2350.1,1.30123687]
[1725928932795,2.4949,2350.3,2349.9,0.97731557]
[1725928932966,2.4949,2350.3,2350.0,3.48505186]
[1725928933156,2.4949,2350.3,2350.1,1.30154617]
[1725928933358,7.32,2350.7,2350.2,3.25454541]
[1725928933359,0.08379713,2350.6,2350.2,3.25454541]
[1725928933695,9.6585,2351.0,2350.5,1.87780958]
[1725928933849,2.3385,2351.0,2350.6,3.25430097]
[1725928934047,2.3385,2351.0,2350.7,3.85673341]
[1725928934296,2.3385,2351.2,2350.8,3.33937323]
[1725928934592,12.07524149,2351.7,2350.9,3.25329562]
[1725928934593,2.3385,2351.5,2350.9,3.25329562]
[1725928934786,0.08379713,2351.4,2351.0,1.30131825]
[1725928935091,0.08379713,2351.4,2350.9,1.87780958]
[1725928935296,0.08379713,2351.4,2351.0,1.30149849]
[1725928935462,2.3385,2351.5,2350.8,0.89221383]
[1725928935789,2.3385,2351.5,2350.9,6.89765496]
[1725928935980,2.3385,2351.5,2351.0,1.30088865]
[1725928936175,2.42229713,2351.5,2350.9,3.64543333]
[1725928936496,2.42229713,2351.5,2350.9,2.7532195]
[1725928937372,2.42229713,2351.5,2350.7,1.49464627]
[1725928937700,2.4623,2351.4,2350.6,3.14261383]
[1725928938006,0.08379713,2351.3,2350.7,3.24985601]
[1725928938161,0.08379713,2351.3,2350.6,3.14261383]
[1725928938497,0.08379713,2351.3,2350.7,3.24987668]
[1725928938695,0.08379713,2351.3,2350.6,3.14261383]
[1725928938900,0.08379713,2351.3,2350.7,3.73954542]
[1725928939100,0.08379713,2351.3,2350.7,0.49032626]
[1725928939600,2.54609713,2351.4,2350.8,0.0850705]
[1725928939813,2.4623,2351.4,2350.8,0.0850705]
[1725928940097,2.4623,2351.4,2350.9,2.4167]
[1725928940298,3.0,2351.6,2351.0,0.33523673]
[1725928940299,2.4523,2351.6,2351.0,0.33523673]
[1725928941599,2.4523,2351.6,2351.0,0.25017705]
[1725928943566,0.08379713,2351.5,2350.9,2.4167]
[1725928945222,2.2518,2351.4,2350.7,2.76782626]
[1725928945389,0.08379713,2351.3,2350.7,2.76782626]
[1725928945715,0.08379713,2351.3,2350.7,2.2775]
[1725928947581,0.08379713,2351.3,2350.6,3.0]
[1725928947782,0.08379713,2351.3,2350.5,4.27266404]
[1725928950276,0.08379713,2351.3,2350.5,2.41187072]
[1725928950479,0.08379713,2351.3,2350.5,5.41187072]
[1725928950721,0.08379713,2351.3,2350.6,0.74118707]
[1725928951713,0.08379713,2351.3,2350.6,0.8262549]
[1725928951917,2.33559713,2351.4,2350.7,2.4499]
[1725928952092,2.2518,2351.4,2350.7,2.4499]
[1725928952422,2.33559713,2351.4,2350.6,0.74118707]
[1725928952717,2.2542,2351.3,2350.6,0.74118707]
[1725928952891,2.45649713,2351.2,2350.6,0.74118707]
[1725928953482,2.3727,2351.2,2350.6,0.74118707]
[1725928958089,2.3727,2351.2,2350.6,2.61965659]
[1725928965552,2.3727,2351.2,2350.6,0.74118707]
[1725928965708,2.45649713,2351.2,2350.6,0.74118707]
[1725928966424,2.3727,2351.2,2350.7,0.37411871]
[1725928969045,2.45419713,2351.1,2350.6,0.74118707]
[1725928969257,4.33266665,2351.1,2350.4,0.89221383]
[1725928969403,2.4877,2350.4,2349.9,0.89221383]
[1725928969599,0.54979479,2351.3,2349.7,0.89221383]
[1725928969600,2.4877,2350.2,2349.7,0.89221383]
[1725928969840,2.4877,2350.0,2349.6,0.89221383]
[1725928970001,0.08379713,2349.9,2349.5,0.89221383]
[1725928970209,0.08379713,2349.9,2349.6,3.30732582]
[1725928970433,2.4877,2350.0,2349.5,0.89221383]
[1725928970631,2.4877,2350.0,2349.6,3.30694358]
[1725928970940,2.4877,2350.0,2349.5,1.55262434]
[1725928971141,2.4877,2350.0,2349.6,3.30261248]
[1725928971443,2.4877,2350.0,2349.7,1.32103057]
[1725928971609,2.4877,2350.0,2349.5,1.55262434]
[1725928971944,2.4877,2350.0,2349.6,4.08322993]
[1725928972196,2.4877,2350.0,2349.7,1.32092042]
[1725928972469,2.4877,2350.0,2349.6,0.78095173]
[1725928973732,2.4877,2350.0,2349.5,1.55262434]
[1725928973935,2.4877,2350.0,2349.6,3.30169718]
[1725928974147,2.4877,2350.0,2349.5,1.55262434]
[1725928974347,2.4877,2350.0,2349.6,3.30169625]
[1725928974543,2.4877,2350.0,2349.5,1.55262434]
[1725928974777,7.32,2350.3,2349.9,0.89221383]
[1725928974976,7.32,2350.3,2350.0,1.32057034]
[1725928975286,0.08379713,2350.4,2349.8,0.89221383]
[1725928975439,0.08379713,2350.4,2349.9,3.30136856]
[1725928975627,0.08379713,2350.4,2350.0,1.32054923]
[1725928975863,0.08379713,2350.4,2350.1,0.50328941]
[1725928976072,0.32046684,2350.4,2350.2,0.50328941]
[1725928976376,0.32046684,2350.4,2350.3,0.50328941]
[1725928976775,2.74336684,2350.4,2350.3,0.50328941]
[1725928976985,2.65956971,2350.4,2349.9,1.98113563]
[1725928977154,2.65956971,2350.4,2350.0,0.50331711]
[1725928977155,0.08379713,2350.3,2350.0,0.50331711]
[1725928977336,0.08379713,2350.3,2350.1,0.50331711]
[1725928977546,0.08379713,2350.3,2350.2,0.50331711]
[1725928977547,0.35813381,2350.3,2350.2,0.50331711]
[1725928978681,0.35813381,2350.3,2350.2,0.50330299]
[1725928980289,0.08379713,2350.3,2350.2,0.50330299]
[1725928981104,2.4229,2350.4,2350.2,0.50330299]
[1725928981393,2.4229,2350.4,2350.3,0.50330299]
[1725928981967,2.4229,2350.4,2349.9,0.9773127]
[1725928982213,2.4072,2350.7,2350.3,0.50328627]
[1725928982492,2.49099713,2350.7,2350.3,0.45773466]
[1725928982690,2.49099713,2350.7,2350.0,0.89221383]
[1725928982895,2.4072,2350.6,2349.6,4.82666443]
[1725928983106,2.4072,2350.4,2349.5,0.89221383]
[1725928983258,2.2932,2350.2,2349.4,0.89221383]
[1725928983455,2.2932,2350.0,2349.5,3.302176]
[1725928983669,0.08379713,2349.9,2349.4,0.89221383]
[1725928983897,0.08379713,2349.9,2349.5,3.30217303]
[1725928984066,0.08379713,2349.9,2349.6,3.30212778]
[1725928984279,0.08379713,2349.9,2349.4,1.55262434]
[1725928984506,0.08379713,2349.9,2349.5,3.30142498]
[1725928984699,0.08379713,2349.9,2349.6,1.32056999]
[1725928984909,0.08379713,2349.9,2349.4,1.55262434]
[1725928985201,0.08379713,2349.9,2349.5,3.5986768]
[1725928985406,0.08379713,2349.9,2349.6,1.32057899]
[1725928985606,0.08379713,2349.9,2349.5,0.29722933]
[1725928986496,0.08379713,2349.9,2349.4,0.66041051]
[1725928986698,0.08379713,2349.9,2349.5,1.3201619]
[1725928986899,0.08379713,2349.9,2349.3,3.89221383]
[1725928986900,0.08379713,2349.9,2349.4,1.98024286]
[1725928987083,0.08379713,2349.9,2349.5,1.32016182]
[1725928987288,0.08379713,2349.9,2349.4,1.98023279]
[1725928987505,0.08379713,2349.9,2349.5,1.3200515]
[1725928987811,0.08379713,2349.9,2349.4,1.98007711]
[1725928988011,0.08379713,2349.9,2349.5,1.91578776]
[1725928988211,0.08379713,2349.9,2349.5,0.59574125]
[1725928988720,0.08379713,2349.9,2349.3,3.97733535]
[1725928989017,0.08379713,2349.9,2349.4,3.30002835]
[1725928989306,0.08379713,2349.9,2349.3,0.97733535]
[1725928989514,0.08379713,2349.9,2349.4,3.30007614]
[1725928989670,0.08379713,2349.9,2349.5,1.32010751]
[1725928989871,0.08379713,2349.9,2349.4,1.97996833]
[1725928990115,0.08379713,2349.9,2349.5,1.31997988]
[1725928990299,0.08379713,2349.9,2349.4,1.97996831]
[1725928990472,0.08379713,2349.9,2349.5,1.31993129]
[1725928990805,0.08379713,2349.9,2349.4,1.02918524]
[1725928991010,0.08379713,2349.9,2349.5,3.29978362]
[1725928991217,0.08379713,2349.9,2349.5,1.97986635]
[1725928991388,0.08379713,2349.9,2349.4,1.92139907]
[1725928991711,0.08379713,2349.9,2349.5,3.92522931]
[1725928991924,0.08379713,2349.9,2349.5,0.62559478]
[1725928992128,0.08379713,2349.9,2349.5,2.60538922]
[1725928992425,0.08379713,2349.9,2349.5,0.62559478]
[1725928992579,0.08379713,2349.9,2349.5,2.60539113]
[1725928992781,0.08379713,2349.9,2349.5,0.62559478]
[1725928993315,2.37699713,2350.0,2349.6,0.26053219]
[1725928993513,0.08379713,2350.1,2349.6,0.08511174]
[1725928994795,2.2978,2350.2,2349.7,7.37337765]
[1725928994907,2.2978,2350.2,2349.7,5.39379516]
[1725928995106,2.2978,2350.2,2349.7,4.07406033]
[1725928995303,0.08379713,2350.1,2349.8,0.50513851]
[1725928995509,0.08379713,2350.1,2349.5,3.82980861]
[1725928995744,0.08379713,2350.1,2349.6,3.29957603]
[1725928995942,0.08379713,2350.1,2349.7,3.29958459]
[1725928996150,0.08379713,2350.1,2349.6,0.89221383]
[1725928996350,0.08379713,2350.1,2349.7,3.29956037]
[1725928996554,0.08379713,2350.1,2349.7,1.25379781]
[1725928997111,0.08379713,2350.1,2349.7,3.23367814]
[1725928997346,0.08379713,2350.1,2349.7,1.25379781]
[1725928999718,2.2978,2350.2,2349.7,1.25379781]
[1725929000318,0.08379713,2350.1,2349.7,1.25379781]
[1725929000545,0.08379713,2350.1,2349.8,0.21460116]
[1725929000743,2.2978,2350.2,2349.8,0.21460116]
[1725929001157,0.08379713,2350.1,2349.7,1.25379781]
[1725929001765,0.08379713,2350.1,2349.6,0.89221383]
[1725929001935,0.08379713,2350.1,2349.7,3.29489325]
[1725929002143,0.08379713,2350.1,2349.6,0.89221383]
[1725929002348,0.08379713,2350.1,2349.7,3.29498297]
[1725929002552,2.2978,2350.2,2349.6,0.89221383]
[1725929002748,2.2978,2350.2,2349.7,3.29527336]
[1725929003084,2.3342,2350.4,2349.8,5.66456118]
[1725929003245,2.3342,2350.6,2349.9,7.18730796]
[1725929003442,2.3342,2350.6,2350.0,5.22806704]
[1725929003675,2.3342,2350.6,2350.1,3.29509413]
[1725929003836,2.3342,2350.6,2350.2,1.3181484]
[1725929004039,2.3342,2350.6,2350.1,1.88018987]
[1725929005142,2.251,2350.9,2350.2,1.31834384]
[1725929005458,0.08379713,2350.8,2350.3,0.54567337]
[1725929006336,0.08379713,2350.8,2350.1,3.15041383]
[1725929006539,2.251,2350.9,2350.2,3.29670273]
[1725929006739,2.251,2350.9,2350.1,2.2582]
[1725929006936,2.251,2350.9,2350.2,1.31868422]
[1725929007237,0.08379713,2350.8,2350.1,2.2582]
[1725929007463,2.251,2350.9,2350.2,4.15743184]
[1725929007776,2.251,2350.9,2350.2,0.86037228]
[1725929008740,0.08379713,2350.8,2350.2,0.86037228]
[1725929009073,0.08379713,2350.8,2350.3,1.31908378]
[1725929009372,0.08379713,2350.8,2350.2,0.86037228]
[1725929009582,2.3135,2350.7,2350.3,1.72036408]
[1725929009808,2.3135,2350.7,2350.3,0.40107861]
[1725929010087,2.3135,2350.7,2350.2,0.86037228]
[1725929010298,2.3135,2350.7,2350.3,1.31929239]
[1725929010446,2.3135,2350.7,2350.2,0.86037228]
[1725929010644,2.3135,2350.7,2350.3,1.31951712]
[1725929010889,2.3135,2350.7,2350.2,0.86037228]
[1725929011104,2.3135,2350.7,2350.3,1.79477543]
[1725929011251,0.08379713,2350.6,2350.1,0.89221383]
[1725929011597,0.08379713,2350.6,2350.2,3.2989068]
[1725929011778,0.08379713,2350.6,2350.1,0.89221383]
[1725929011954,2.44,2350.5,2350.2,1.31983637]
[1725929012150,2.44,2350.5,2350.0,2.27398543]
[1725929012349,2.44,2350.5,2350.1,3.29963893]
[1725929012580,0.08379713,2350.4,2350.0,1.31831383]
[1725929012791,0.08379713,2350.4,2350.1,3.30050468]
[1725929012967,0.08379713,2350.4,2350.0,0.89221383]
[1725929013181,2.44,2350.5,2350.1,3.30048431]
[1725929013383,2.44,2350.5,2350.2,3.30104872]
[1725929013567,2.44,2350.5,2350.1,0.89221383]
[1725929013756,2.44,2350.5,2350.2,3.52405621]
[1725929013957,2.3204,2350.6,2350.3,3.30137995]
[1725929014164,2.3204,2350.6,2350.4,1.32055198]
[1725929014365,2.3204,2350.6,2350.3,0.89221383]
[1725929014567,2.3204,2350.6,2350.4,3.30219123]
[1725929014770,2.3204,2350.6,2350.3,0.89221383]
[1725929015058,2.3204,2350.6,2350.4,1.32087775]
[1725929015261,2.3204,2350.6,2350.2,1.54099009]
[1725929015602,2.3204,2350.6,2350.3,4.19491018]
[1725929015785,2.3204,2350.6,2350.4,3.30268165]
[1725929015952,2.3204,2350.6,2350.3,0.89221383]
[1725929016151,2.3204,2350.6,2350.4,3.30269396]
[1725929016381,2.3204,2350.6,2350.3,0.89221383]
[1725929016695,2.3105,2350.9,2350.4,3.3026019]
[1725929016860,2.3105,2350.9,2350.5,3.3026019]
[1725929017066,2.3105,2350.9,2350.6,3.30251762]
[1725929017358,11.3915374,2351.7,2350.7,1.32100705]
[1725929017359,2.3105,2351.5,2350.7,1.32100705]
[1725929017681,2.4847,2351.3,2350.6,0.89221383]
[1725929017886,0.08379713,2351.2,2350.7,3.30165755]
[1725929018066,0.08379713,2351.2,2350.8,1.32066302]
[1725929018266,2.4847,2351.1,2350.6,1.31831383]
[1725929018495,0.08379713,2351.0,2350.7,3.30095061]
[1725929018667,2.4847,2351.1,2350.6,1.31831383]
[1725929018888,2.4847,2351.1,2350.7,1.32038299]
[1725929019071,2.4847,2351.1,2350.6,0.4261]
[1725929019272,2.4847,2351.1,2350.7,1.32040238]
[1725929019457,0.08379713,2351.0,2350.6,0.4261]
[1725929019651,0.08379713,2351.0,2350.7,1.32022271]
[1725929019856,0.08379713,2351.0,2350.6,0.4261]
[1725929020098,0.08379713,2351.0,2350.7,1.32022296]
[1725929020299,0.08379713,2351.0,2350.6,0.4261]
[1725929020598,0.08379713,2351.0,2350.7,1.32005428]
[1725929020802,0.08379713,2351.0,2350.6,0.4261]
[1725929022007,0.08379713,2351.0,2350.7,1.31983876]
[1725929022312,0.08379713,2351.0,2350.6,1.09854]
[1725929022867,0.08379713,2351.0,2350.6,0.67244]
[1725929024330,2.4215,2350.9,2350.3,3.60846771]
[1725929024472,2.4215,2350.9,2350.4,3.29859695]
[1725929024673,2.4215,2350.9,2350.5,3.29854948]
[1725929024898,2.4215,2350.9,2350.4,0.89221383]
[1725929025101,2.4215,2350.9,2350.5,4.05673366]
[1725929025302,2.4215,2350.9,2350.6,0.08508172]
[1725929027134,2.4215,2350.9,2350.5,0.75818561]
[1725929027491,2.4215,2350.9,2350.3,3.60846771]
[1725929027691,2.4215,2350.9,2350.4,3.29793647]
[1725929027938,2.4215,2350.9,2350.3,3.60846771]
[1725929027939,2.4215,2350.9,2350.5,1.31917459]
[1725929028236,2.4215,2350.9,2350.3,3.60846771]
[1725929028440,2.4215,2350.9,2350.4,3.29774902]
[1725929028683,0.08379713,2350.8,2350.5,1.31909961]
[1725929028956,0.08379713,2350.8,2350.3,0.28755388]
[1725929029260,0.08379713,2350.8,2350.4,1.31912117]
[1725929029560,0.08379713,2350.8,2350.3,4.17976771]
[1725929029859,0.08379713,2350.8,2350.4,3.2980039]
[1725929030063,0.08379713,2350.8,2350.3,4.17976771]
[1725929030366,0.08379713,2350.8,2350.0,1.77939834]
[1725929030367,2.2725,2350.7,2350.0,2.67161217]
[1725929030522,0.08379713,2350.6,2350.1,4.19070038]
[1725929030724,2.2898,2350.9,2350.2,3.29848655]
[1725929030926,2.2898,2350.7,2350.1,0.89221383]
[1725929031171,2.4858,2350.5,2350.2,3.29844653]
[1725929031459,2.4858,2350.5,2350.3,1.3194702]
[1725929031671,2.4858,2350.5,2350.1,0.89221383]
[1725929031970,2.3907,2350.9,2350.2,4.19088889]
[1725929032178,0.08379713,2350.8,2350.3,3.29867506]
[1725929032353,0.08379713,2350.8,2350.2,6.48733723]
[1725929032554,0.08379713,2350.8,2350.3,3.29895558]
[1725929032763,0.08379713,2350.8,2350.2,6.48733723]
[1725929032974,0.08379713,2350.8,2350.3,3.29895455]
[1725929033192,0.08379713,2350.8,2350.2,6.48733723]
[1725929033468,0.08379713,2350.8,2350.3,4.32257853]
[1725929033672,0.08379713,2350.8,2350.3,1.0232486]
[1725929036350,0.08379713,2350.8,2350.4,1.32029023]
[1725929036552,0.08379713,2350.8,2350.3,1.0232486]
[1725929036853,0.08379713,2350.8,2350.4,1.32028899]
[1725929037057,0.08379713,2350.8,2350.3,1.0232486]
[1725929037377,2.47449713,2350.9,2350.4,1.96160029]
[1725929037580,2.47449713,2350.9,2350.4,0.64130998]
[1725929038439,2.3907,2350.9,2350.4,0.64130998]
[1725929039268,0.08379713,2350.8,2350.4,0.64130998]
[1725929039676,0.08379713,2350.8,2350.5,1.32092099]
[1725929039893,0.08379713,2350.8,2350.4,0.64130998]
[1725929039894,2.47449713,2350.9,2350.4,0.64130998]
[1725929040053,2.47449713,2350.9,2350.5,1.32091291]
[1725929040253,2.47449713,2350.9,2350.3,2.34156243]
[1725929040454,2.47449713,2350.9,2350.4,4.96954897]
[1725929040687,2.3907,2350.9,2350.5,3.30257028]
[1725929040889,0.08379713,2350.8,2350.4,0.77476486]
[1725929041201,0.08379713,2350.8,2350.5,1.32103218]
[1725929041380,0.08379713,2350.8,2350.4,0.77476486]
[1725929041684,0.08379713,2350.8,2350.5,1.32107492]
[1725929041896,0.08379713,2350.8,2350.4,1.66697869]
[1725929042187,2.47449713,2350.9,2350.5,1.32111142]
[1725929042395,2.47449713,2350.9,2350.4,1.66697869]
[1725929042612,2.47449713,2350.9,2350.5,3.30298436]
[1725929042898,2.47449713,2350.9,2350.4,1.66697869]
[1725929043047,2.3907,2350.9,2350.5,3.30306472]
[1725929043254,2.3907,2350.9,2350.4,1.66697869]
[1725929043639,2.3907,2350.9,2350.5,3.80658861]
[1725929043796,2.3907,2350.9,2350.4,1.66697869]
[1725929044095,2.3907,2350.9,2350.5,3.3034732]
[1725929044253,2.3907,2350.9,2350.4,1.66697869]
[1725929044454,2.3907,2350.9,2350.5,3.30387088]
[1725929044692,2.3907,2350.9,2350.6,1.32157246]
[1725929044902,2.3907,2350.9,2350.4,2.09307869]
[1725929045191,2.3907,2350.9,2350.5,3.30395298]
[1725929045400,2.3907,2350.9,2350.4,2.09307869]
[1725929045401,2.3907,2350.9,2350.6,1.32158119]
[1725929045706,7.32,2351.2,2350.7,1.82490826]
[1725929045707,2.48469713,2350.8,2350.7,1.82490826]
[1725929045871,2.4009,2350.8,2350.7,1.32177214]
[1725929046071,2.4009,2350.8,2350.5,0.89221383]
[1725929046389,2.4009,2350.8,2350.6,3.30444507]
[1725929046573,2.4009,2350.8,2350.5,0.89221383]
[1725929046769,2.4009,2350.8,2350.6,3.30496448]
[1725929046995,2.4009,2350.8,2350.5,0.89221383]
[1725929047205,2.4009,2350.8,2350.6,3.30494945]
[1725929047439,2.4009,2350.8,2350.7,1.32197978]
[1725929047586,2.4009,2350.8,2350.5,0.89221383]
[1725929047786,2.4009,2350.8,2350.6,3.30563743]
[1725929048134,2.3615,2351.0,2350.7,1.32225069]
[1725929048436,2.3615,2351.0,2350.8,3.30551485]
[1725929048593,2.3615,2351.0,2350.9,3.30589521]
[1725929049292,2.4632,2351.5,2351.0,2.2705]
[1725929049601,2.4632,2351.8,2351.3,4.96439716]
[1725929049801,2.4632,2351.8,2351.4,4.19875497]
[1725929049998,2.54699713,2351.8,2351.5,3.30490701]
[1725929050201,2.54699713,2351.8,2351.6,1.32225069]
[1725929050405,2.4632,2351.8,2351.4,0.89285976]
[1725929050617,2.4632,2351.8,2351.5,1.32095299]
[1725929050801,2.4632,2351.8,2351.3,1.40400882]
[1725929051016,2.4632,2351.8,2351.4,3.30239181]
[1725929051222,2.4632,2351.8,2351.5,3.30236232]
[1725929051539,2.4632,2351.8,2351.4,0.08504471]
[1725929051717,2.33709713,2352.0,2351.5,3.30057075]
[1725929052033,2.33709713,2352.0,2351.4,0.97790447]
[1725929052231,2.2533,2352.0,2351.5,4.09113167]
[1725929052406,2.2533,2352.0,2351.5,0.87558342]
[1725929052819,2.2533,2352.0,2351.5,0.08503953]
[1725929053433,2.2533,2352.0,2351.3,3.74885681]
[1725929053735,2.2533,2352.0,2351.4,3.2976609]
[1725929054034,2.2533,2352.0,2351.5,1.319066]
[1725929054233,2.2533,2352.0,2351.3,3.74885681]
[1725929054404,2.2533,2352.0,2351.4,3.83541652]
[1725929054609,0.08379713,2351.9,2351.4,0.50834056]
[1725929054943,0.08379713,2351.9,2351.3,0.55719705]
[1725929055238,2.4678,2351.8,2351.3,0.55719705]
[1725929055592,2.4678,2352.0,2351.4,0.08504948]
[1725929057334,2.4678,2352.0,2351.3,4.62873445]
[1725929058038,2.4678,2352.0,2351.4,1.41449521]
[1725929058249,2.4678,2352.0,2351.5,0.60432297]
[1725929058911,2.4678,2352.0,2351.3,0.55719705]
[1725929060929,2.4678,2352.0,2351.4,0.08503988]
[1725929061237,2.4678,2352.0,2351.3,0.55719705]
[1725929061813,0.08379713,2351.9,2351.2,1.99320526]